[Event "CZE-tht Extraliga 2018-19"]
[Site "Czech Republic"]
[Date "2018.12.01"]
[Round "3"]
[White "Priehoda, Vitezslav"]
[Black "Simek, Petr"]
[Result "1-0"]
[ECO "D61"]
[WhiteElo "2354"]
[BlackElo "2338"]
[Annotator "NA"]
[PlyCount "147"]
[EventDate "2018.11.03"]
[EventType "team-tourn"]
[EventCountry "CZE"]
[SourceTitle "playchess.com"]
[Source "ChessBase"]
[SourceQuality "1"]
[WhiteTeam "Lysa nad Labem"]
[BlackTeam "Siesta"]
[TimeControl "40/5400+30:1800+30"]

1. d4 {[%emt 0:00:00]} Nf6 {[%emt 0:00:00]} 2. c4 {[%emt 0:00:00]} e6 {[%emt 0:00:00]} 3. Nf3 {[%emt 0:00:00]} d5 {[%emt 0:00:03]} 4. Nc3 {[%emt 0:00:00]} Nbd7 {[%emt 0:00:12]} 5. Bg5 {[%emt 0:00:09]} Be7 {[%emt 0:00:17]} 6. e3 {[%emt 0:00:05]} O-O {[%emt 0:00:11]} 7. Qc2 {[%emt 0:00:45]} c5 {[%emt 0:00:20]} 8. dxc5 {[%emt 0:02:01]} Nxc5 {[%emt 0:00:16]} 9. Rd1 {[%emt 0:10:08] D61: Queen's Gambit Declined: Classical: 7 Qc2} (9. a3 h6 10. Bh4 Nce4 11. Nxe4 Nxe4 12. Bxe7 Qxe7 13. Rd1 Nf6 14. cxd5 Nxd5 15. Bc4 Nf6 16. Rf1 {½-½ (16) Mamedyarov,S (2752)-Alekseev,E (2716) Kemer 2007}) 9... Qa5 {[%emt 0:02:55]} 10. cxd5 {[%emt 0:26:03]} exd5 {[%emt 0:00:35] LiveBook: 4 Games} 11. Nd4 {[%emt 0:02:19]} Rd8 $146 {[%emt 0:25:22]} ({Predecessor:} 11... Bd7 12. Bd3 Ba4 13. Nb3 Bxb3 14. axb3 Nce4 15. Bxe4 dxe4 16. Bxf6 Bxf6 {½-½ (24) Tisdall,J (2515)-Ostenstad,B (2465) Norway 1996}) 12. Be2 {[%emt 0:04:18]} Nce4 {[%emt 0:01:58]} 13. Nb3 {[%emt 0:03:08]} Qc7 {[%emt 0:00:30]} 14. Bf4 {[%emt 0:00:06]} Bd6 {[%emt 0:00:15]} 15. Bxd6 {[%emt 0:00:19]} Rxd6 {[%emt 0:00:14]} 16. Rc1 {[%emt 0:03:56]} Qe7 {[%emt 0:10:57]} 17. O-O {[%emt 0:14:53]} Bf5 {[%emt 0:03:13]} 18. Nd4 {[%emt 0:00:17]} Bg6 {[%emt 0:00:06]} 19. Bd3 {[%emt 0:03:11]} a6 {[%emt 0:05:07]} 20. Rfd1 {[%emt 0:07:03]} Rad8 {[%emt 0:05:04]} 21. Nxe4 {[%emt 0:05:33]} dxe4 {[%emt 0:10:43]} 22. Be2 $11 {[%emt 0:00:08]} h5 {[%emt 0:02:52]} 23. Nb3 {[%emt 0:04:09]} Nd5 {[%emt 0:10:25]} 24. Rd4 {[%emt 0:01:33]} Nf4 {[%emt 0:12:12]} 25. Rxd6 {[%emt 0:02:06]} Nxe2+ {[%emt 0:00:01]} 26. Qxe2 {[%emt 0:00:12]} Qxd6 {[%emt 0:00:04]} 27. Nd4 {[%emt 0:00:41]} f6 {[%emt 0:00:11]} 28. Qc4+ {[%emt 0:00:51]} Bf7 {[%emt 0:00:05]} 29. Qc2 {[%emt 0:02:32]} Qe5 {[%emt 0:04:21]} 30. a3 {[%emt 0:00:17]} h4 {[%emt 0:03:33]} 31. Qc7 {[%emt 0:01:25]} Qd5 {[%emt 0:00:39]} 32. Rc5 {[%emt 0:01:27]} Qd7 {[%emt 0:00:45]} 33. h3 {[%emt 0:00:51]} Ba2 {[%emt 0:00:54]} 34. b3 {[%emt 0:01:23]} Bb1 {[%emt 0:00:30]} 35. Ne6 {[%emt 0:02:28]} Qd1+ {[%emt 0:01:06]} 36. Kh2 {[%emt 0:00:01]} Qd6+ {[%emt 0:00:06]} 37. Qxd6 {[%emt 0:00:22]} Rxd6 {[%emt 0:00:01]} 38. Nd4 {[%emt 0:01:10]} Rd7 {[%emt 0:01:17]} 39. Kg1 {[%emt 0:01:01]} Bd3 {[%emt 0:01:32]} 40. Rc3 {[%emt 0:01:22]} Bb1 {[%emt 0:00:21]} 41. Rc5 {[%emt 0:31:43]} Kf7 {[%emt 0:04:46]} 42. g3 {[%emt 0:00:00]} hxg3 {[%emt 0:01:52]} 43. fxg3 {[%emt 0:00:00]} Re7 {[%emt 0:01:26]} 44. Kf2 {[%emt 0:00:00]} g5 {[%emt 0:02:11]} 45. g4 {[%emt 0:00:00]} Rd7 {[%emt 0:00:42]} 46. Kg3 {[%emt 0:00:00]} Kf8 {[%emt 0:01:31]} 47. h4 {[%emt 0:00:00]} gxh4+ {[%emt 0:00:16]} 48. Kxh4 {[%emt 0:00:00]} Kf7 {[%emt 0:03:26]} 49. Kg3 {[%emt 0:00:00]} Kg6 {[%emt 0:01:04]} 50. Kf4 {[%emt 0:00:00]} Rh7 {[%emt 0:01:04]} 51. Rc1 {[%emt 0:00:00]} Bd3 {[%emt 0:00:04]} 52. Kg3 {[%emt 0:00:00]} Rd7 {[%emt 0:01:51]} 53. Nf5 {[%emt 0:00:00]} Kf7 {[%emt 0:00:44]} 54. Kf4 {[%emt 0:00:00]} Ke6 {[%emt 0:03:25]} 55. Rc5 {[%emt 0:00:00]} Bb1 {[%emt 0:01:35]} 56. Nd4+ {[%emt 0:00:00]} Kd6 {[%emt 0:01:14]} 57. Rh5 {[%emt 0:00:00]} Rf7 {[%emt 0:03:18]} 58. Rh6 {[%emt 0:00:00]} Ke7 {[%emt 0:00:21]} 59. Nf5+ {[%emt 0:00:00]} Kd7 {[%emt 0:00:01]} 60. Ng3 {[%emt 0:00:00]} a5 {[%emt 0:02:01]} 61. Nxe4 {[%emt 0:00:00]} Bxe4 {[%emt 0:00:17]} 62. Kxe4 {[%emt 0:00:00]} Re7+ {[%emt 0:00:13]} 63. Kf4 {[%emt 0:00:50]} Re6 {[%emt 0:00:05]} 64. Rh7+ {[%emt 0:01:44]} Kc6 {[%emt 0:00:03]} 65. Rh5 {[%emt 0:00:10]} b6 {[%emt 0:00:54]} 66. a4 {[%emt 0:00:11]} Rd6 {[%emt 0:00:29]} 67. e4 {[%emt 0:01:23]} Rd1 {[%emt 0:00:48]} 68. Rf5 {[%emt 0:01:00]} Rf1+ {[%emt 0:02:45]} 69. Ke3 {[%emt 0:00:16]} Rb1 {[%emt 0:00:15]} 70. Rxf6+ {[%emt 0:00:09]} Kc7 {[%emt 0:00:12]} 71. g5 {[%emt 0:00:51]} Rxb3+ {[%emt 0:00:11]} 72. Kf4 {[%emt 0:00:26]} Rb1 {[%emt 0:00:00]} 73. g6 {[%emt 0:01:31]} Rg1 {[%emt 0:00:00]} 74. Kf5 {[%emt 0:00:24]} 1-0

[Event "CZE-tht Extraliga 2018-19"]
[Site "Czech Republic"]
[Date "2018.12.01"]
[Round "3"]
[White "Cerveny, Martin"]
[Black "Caletka, Radomir"]
[Result "1/2-1/2"]
[ECO "D10"]
[WhiteElo "2347"]
[BlackElo "2285"]
[Annotator "NA"]
[PlyCount "67"]
[EventDate "2018.11.03"]
[EventType "team-tourn"]
[EventCountry "CZE"]
[SourceTitle "playchess.com"]
[Source "ChessBase"]
[SourceQuality "1"]
[WhiteTeam "Duras"]
[BlackTeam "Poruba"]
[TimeControl "40/5400+30:1800+30"]

1. d4 {[%emt 0:00:00]} d5 {[%emt 0:00:00]} 2. c4 {[%emt 0:00:00]} c6 {[%emt 0:00:00]} 3. cxd5 {[%emt 0:00:20]} cxd5 {[%emt 0:00:00]} 4. Nc3 {[%emt 0:00:07]} Nf6 {[%emt 0:00:00]} 5. Bf4 {[%emt 0:00:07]} Nc6 {[%emt 0:00:43]} 6. e3 {[%emt 0:00:08]} a6 {[%emt 0:05:49]} 7. Bd3 {[%emt 0:01:46]} Bg4 {[%emt 0:01:03]} 8. Nge2 {[%emt 0:04:03]} e6 {[%emt 0:00:48]} 9. Bg5 $146 {[%emt 0:12:56] D10: Slav Defence: 3 cxd5 (without early Nf3) and 3 Nc3} ({Predecessor:} 9. O-O Be7 10. h3 Bh5 11. Rc1 O-O 12. Na4 Rc8 13. a3 Nd7 14. b4 e5 15. dxe5 Ndxe5 16. Bf5 Ra8 17. Nc5 b5 {1-0 (33) Le,Q (2737)-Andreikin,D (2712) Huaian 2017}) 9... Be7 {[%emt 0:04:15]} 10. Qb3 {[%emt 0:04:28]} Na5 {[%emt 0:03:21]} 11. Qc2 {[%emt 0:01:47]} Bh5 {[%emt 0:02:58]} 12. Nf4 {[%emt 0:00:34]} Bg6 {[%emt 0:00:24]} 13. Nxg6 {[%emt 0:00:29]} hxg6 {[%emt 0:00:02]} 14. Rc1 {[%emt 0:06:15]} Rc8 {[%emt 0:02:22]} 15. Qe2 {[%emt 0:06:54]} Qd7 {[%emt 0:17:38]} 16. O-O {[%emt 0:11:07]} O-O {[%emt 0:05:23]} 17. Bxf6 {[%emt 0:10:46]} gxf6 {[%emt 0:01:53]} 18. f4 {[%emt 0:01:52]} Kg7 {[%emt 0:03:02]} 19. Qf3 {[%emt 0:18:52]} f5 $15 {[%emt 0:17:14]} 20. g4 {[%emt 0:00:47]} fxg4 {[%emt 0:11:20]} 21. Qxg4 {[%emt 0:00:02]} Nc4 {[%emt 0:03:09]} 22. Qe2 {[%emt 0:01:02]} Nd6 {[%emt 0:00:31]} 23. Kh1 {[%emt 0:01:05]} Rh8 {[%emt 0:00:47]} 24. Nb1 {[%emt 0:02:54]} Qa4 {[%emt 0:04:09]} 25. b3 {[%emt 0:00:27]} Qa5 {[%emt 0:02:12]} 26. Rxc8 {[%emt 0:00:15]} Rxc8 {[%emt 0:00:21]} 27. Rg1 {[%emt 0:00:19]} Nf5 {[%emt 0:03:27]} 28. Bxf5 {[%emt 0:02:41]} exf5 {[%emt 0:00:01]} 29. Rd1 {[%emt 0:01:30]} Bb4 {[%emt 0:01:10]} 30. Kg2 {[%emt 0:00:47]} Rc6 {[%emt 0:01:03]} 31. Kf1 {[%emt 0:00:42]} Be7 {[%emt 0:03:07]} 32. Qg2 {[%emt 0:03:48]} Re6 {[%emt 0:01:12]} 33. Qe2 {[%emt 0:01:15]} Bd6 {[%emt 0:00:53]} 34. Qf2 {[%emt 0:00:41]} 1/2-1/2

[Event "CZE-tht Extraliga 2018-19"]
[Site "Czech Republic"]
[Date "2018.12.01"]
[Round "3"]
[White "Sosna, Jan"]
[Black "Chytilek, Roman"]
[Result "1/2-1/2"]
[ECO "D02"]
[WhiteElo "2338"]
[BlackElo "2331"]
[Annotator "NA"]
[PlyCount "25"]
[EventDate "2018.11.03"]
[EventType "team-tourn"]
[EventCountry "CZE"]
[SourceTitle "playchess.com"]
[Source "ChessBase"]
[SourceQuality "1"]
[WhiteTeam "Poruba"]
[BlackTeam "Duras"]
[TimeControl "40/5400+30:1800+30"]

1. d4 {[%emt 0:00:00]} Nf6 {[%emt 0:00:00]} 2. Nf3 {[%emt 0:00:00]} d5 {[%emt 0:00:26]} 3. Bf4 {[%emt 0:00:00]} e6 {[%emt 0:00:32]} 4. Nbd2 {[%emt 0:02:08]} c5 {[%emt 0:00:20]} 5. e3 {[%emt 0:00:09]} Nc6 {[%emt 0:00:39]} 6. c3 {[%emt 0:00:19]} cxd4 {[%emt 0:02:48]} 7. exd4 {[%emt 0:00:49]} Nh5 {[%emt 0:00:09]} 8. Be3 {[%emt 0:07:07]} Bd6 {[%emt 0:00:54]} 9. Bd3 {[%emt 0:10:00]} Nf4 {[%emt 0:17:58]} 10. Bxf4 {[%emt 0:00:41]} Bxf4 {[%emt 0:00:23]} 11. O-O {[%emt 0:00:11]} O-O {[%emt 0:01:56]} 12. Re1 {[%emt 0:00:27]} g6 {[%emt 0:01:59]} 13. Nf1 {[%emt 0:15:56]} 1/2-1/2

[Event "CZE-tht Extraliga 2018-19"]
[Site "Czech Republic"]
[Date "2018.12.01"]
[Round "3"]
[White "Kozak, Milos"]
[Black "Haba, Petr"]
[Result "*"]
[ECO "C42"]
[WhiteElo "2201"]
[BlackElo "2445"]
[Annotator "NA"]
[PlyCount "40"]
[EventDate "2018.11.03"]
[EventType "team-tourn"]
[EventCountry "CZE"]
[SourceTitle "playchess.com"]
[Source "ChessBase"]
[SourceQuality "1"]
[WhiteTeam "Siesta B"]
[BlackTeam "Novoborsky"]
[TimeControl "40/5400+30:1800+30"]

{[%evp 13,32,58,32767,32767,36,26,32,32767,32767,18,35,11,25,20,22,32767,53,54,32,32767,29]} 1. e4 {[%emt 0:00:00]} e5 {[%emt 0:00:00]} 2. Nf3 {[%emt 0:00:00]} Nf6 {[%emt 0:00:00]} 3. Nxe5 {[%emt 0:00:04]} d6 {[%emt 0:00:00]} 4. Nf3 {[%emt 0:00:08]} Nxe4 {[%emt 0:00:00]} 5. d4 {[%emt 0:00:43]} d5 {[%emt 0:00:08]} 6. Bd3 {[%emt 0:00:28]} Nc6 {[%emt 0:01:03]} 7. O-O {[%emt 0:00:22]} Be7 {[%emt 0:00:35]} 8. Nbd2 {[%emt 0:00:56]} Nd6 {[%emt 0:09:13]} 9. c3 {[%emt 0:01:08]} Bf5 {[%emt 0:00:59]} 10. Bxf5 {[%emt 0:07:14]} Nxf5 {[%emt 0:00:10]} 11. Re1 {[%emt 0:00:03]} O-O {[%emt 0:02:26] LiveBook: 5 Games} 12. Nf1 {[%emt 0:00:08]} Re8 {[%emt 0:03:29]} 13. Qb3 {[%emt 0:07:24]} b6 {[%emt 0:10:49]} 14. Bf4 {[%emt 0:10:13]} Na5 {[%emt 0:11:39]} 15. Qc2 {[%emt 0:08:24]} Nd6 {[%emt 0:03:17]} 16. Ne3 {[%emt 0:24:00]} c6 $11 {[%emt 0:02:35]} 17. b3 {[%emt 0:00:01]} Nab7 {[%emt 0:08:10]} 18. c4 {[%emt 0:02:05]} dxc4 {[%emt 0:00:49]} 19. bxc4 {[%emt 0:00:28]} c5 {[%emt 0:10:34]} 20. Rad1 {[%emt 0:02:45]} cxd4 *

[Event "CZE-tht Extraliga 2018-19"]
[Site "Czech Republic"]
[Date "2018.12.02"]
[Round "4"]
[White "Krejci, Jan"]
[Black "Kislinsky, Alexey"]
[Result "1/2-1/2"]
[ECO "B30"]
[WhiteElo "2562"]
[BlackElo "2425"]
[Annotator "RC"]
[PlyCount "55"]
[EventDate "2018.11.03"]
[EventType "team-tourn"]
[EventCountry "CZE"]
[SourceTitle "playchess.com"]
[Source "ChessBase"]
[SourceQuality "1"]
[WhiteTeam "Novoborsky"]
[BlackTeam "Lysa nad Labem"]
[TimeControl "40/5400+30:1800+30"]

1. Nf3 {[%emt 0:00:00]} c5 {[%emt 0:00:00]} 2. e4 {[%emt 0:00:25]} Nc6 {[%emt 0:00:02]} 3. Bb5 {[%emt 0:00:34]} Nf6 {[%emt 0:00:32]} 4. Nc3 {[%emt 0:03:37]} g6 {[%emt 0:00:21]} 5. O-O {[%emt 0:02:27]} Bg7 {[%emt 0:01:15]} 6. Re1 {[%emt 0:03:48]} O-O {[%emt 0:00:47]} 7. e5 {[%emt 0:02:14]} Ng4 {[%emt 0:02:07]} 8. Bxc6 {[%emt 0:00:20]} dxc6 {[%emt 0:08:30]} 9. d3 {[%emt 0:00:41]} Nh6 {[%emt 0:00:35]} 10. Ne4 {[%emt 0:04:56]} b6 {[%emt 0:02:39]} 11. Bxh6 {[%emt 0:01:49]} Bxh6 {[%emt 0:00:11]} 12. a4 {[%emt 0:01:05]} a5 {[%emt 0:01:38]} 13. h3 {[%emt 0:01:40]} Ra7 {[%emt 0:02:32]} 14. Qe2 {[%emt 0:01:11]} Bg7 {[%emt 0:08:17]} 15. Rad1 {[%emt 0:01:10]} Qc7 {[%emt 0:02:15]} 16. Ned2 {[%emt 0:02:53]} h6 {[%emt 0:02:27]} 17. b3 {[%emt 0:06:30]} Rd8 {[%emt 0:01:07]} 18. Qe3 {[%emt 0:04:50]} Bf5 {[%emt 0:04:48]} 19. Qf4 {[%emt 0:04:00]} Qb8 {[%emt 0:02:05]} 20. d4 {[%emt 0:10:10]} Bxc2 {[%emt 0:16:48]} 21. Rc1 {[%emt 0:00:04]} Bf5 {[%emt 0:06:20]} 22. dxc5 {[%emt 0:00:07]} Rad7 {[%emt 0:00:50]} 23. Nc4 {[%emt 0:15:42]} bxc5 {[%emt 0:00:26]} 24. Nxa5 {[%emt 0:00:06]} Qb6 {[%emt 0:00:35]} 25. b4 {[%emt 0:00:15]} Qxb4 {[%emt 0:06:24]} 26. Qxb4 {[%emt 0:01:15]} cxb4 {[%emt 0:00:06]} 27. Nxc6 {[%emt 0:00:40]} Ra8 {[%emt 0:01:11]} 28. Nxb4 {[%emt 0:04:02]} 1/2-1/2

[Event "CZE-tht Extraliga 2018-19"]
[Site "Czech Republic"]
[Date "2018.12.02"]
[Round "4"]
[White "Repka, Christopher"]
[Black "Szotkowski, Jakub"]
[Result "1-0"]
[ECO "A57"]
[WhiteElo "2499"]
[BlackElo "2357"]
[Annotator "RC"]
[PlyCount "95"]
[EventDate "2018.11.03"]
[EventType "team-tourn"]
[EventCountry "CZE"]
[SourceTitle "playchess.com"]
[Source "ChessBase"]
[SourceQuality "1"]
[WhiteTeam "Pardubice"]
[BlackTeam "Beskydska"]
[TimeControl "40/5400+30:1800+30"]

1. d4 {[%emt 0:00:00]} Nf6 {[%emt 0:00:00]} 2. c4 {[%emt 0:00:00]} c5 {[%emt 0:00:00]} 3. d5 {[%emt 0:00:00]} b5 {[%emt 0:00:05]} 4. Nf3 {[%emt 0:00:03]} bxc4 {[%emt 0:00:34]} 5. Nc3 {[%emt 0:00:10]} d6 {[%emt 0:00:10]} 6. e4 {[%emt 0:00:09]} g6 {[%emt 0:00:23]} 7. Nd2 {[%emt 0:02:24]} Bg7 {[%emt 0:00:24]} 8. Be2 {[%emt 0:00:05]} O-O {[%emt 0:00:16]} 9. O-O {[%emt 0:00:04]} Ba6 {[%emt 0:10:05]} 10. Nxc4 {[%emt 0:06:16]} Nbd7 {[%emt 0:02:10]} 11. Bf4 {[%emt 0:02:06]} Nh5 {[%emt 0:11:03]} 12. Bg5 {[%emt 0:02:30]} Bxc4 {[%emt 0:06:07]} 13. Bxc4 {[%emt 0:00:07]} Rb8 {[%emt 0:00:37]} 14. Qd2 {[%emt 0:00:58]} Rb4 {[%emt 0:05:29]} 15. Be2 {[%emt 0:00:59]} Nhf6 {[%emt 0:02:55]} 16. f3 {[%emt 0:00:05]} Qb8 {[%emt 0:01:56]} 17. Rab1 {[%emt 0:01:29]} Re8 {[%emt 0:04:24]} 18. a3 {[%emt 0:00:25]} Rb7 {[%emt 0:02:30]} 19. Ba6 {[%emt 0:07:25]} Rb6 {[%emt 0:01:40]} 20. Qe2 {[%emt 0:00:13]} e6 {[%emt 0:07:11]} 21. dxe6 {[%emt 0:01:30]} fxe6 {[%emt 0:00:15]} 22. Bb5 {[%emt 0:07:40]} Qb7 {[%emt 0:08:39]} 23. Rfd1 {[%emt 0:03:51]} a6 {[%emt 0:03:16]} 24. Bc4 {[%emt 0:04:49]} Kh8 {[%emt 0:01:00]} 25. Qd2 {[%emt 0:04:09]} Ne5 {[%emt 0:01:31]} 26. Be2 {[%emt 0:00:33]} Nfd7 {[%emt 0:06:10]} 27. Be3 {[%emt 0:01:38]} Qc6 {[%emt 0:09:03]} 28. f4 {[%emt 0:01:37]} Nf7 {[%emt 0:00:24]} 29. Bf3 {[%emt 0:00:04]} g5 {[%emt 0:07:51]} 30. e5 {[%emt 0:12:55]} Qc7 {[%emt 0:00:11]} 31. g3 {[%emt 0:20:20]} gxf4 {[%emt 0:00:17]} 32. gxf4 {[%emt 0:00:03]} Rg8 {[%emt 0:00:56]} 33. Kh1 {[%emt 0:00:38]} d5 34. Nxd5 {[%emt 0:02:35]} exd5 {[%emt 0:02:45]} 35. Qxd5 {[%emt 0:00:05]} Ndxe5 {[%emt 0:03:15]} 36. fxe5 {[%emt 0:01:35]} Nxe5 {[%emt 0:00:10]} 37. Bf4 {[%emt 0:02:43]} Rf8 {[%emt 0:02:51]} 38. Bg3 {[%emt 0:00:06]} Qe7 {[%emt 0:01:50]} 39. Re1 {[%emt 0:03:10]} Qf6 {[%emt 0:00:09]} 40. Be4 {[%emt 0:08:48]} Ng4 {[%emt 0:00:26]} 41. Qh5 {[%emt 0:34:01]} Nh6 {[%emt 0:01:33]} 42. Rbd1 {[%emt 0:00:00]} Re6 {[%emt 0:04:54]} 43. b3 {[%emt 0:00:00]} Rfe8 {[%emt 0:08:46]} 44. Rf1 {[%emt 0:00:00]} Qe7 {[%emt 0:02:41]} 45. Bd5 {[%emt 0:00:00]} Re2 {[%emt 0:01:25]} 46. Rde1 {[%emt 0:00:00]} Bc3 {[%emt 0:02:27]} 47. Qxh6 {[%emt 0:00:00]} Bxe1 {[%emt 0:07:10]} 48. Rf7 {[%emt 0:00:00]} 1-0

[Event "CZE-tht Extraliga 2018-19"]
[Site "Czech Republic"]
[Date "2018.12.02"]
[Round "4"]
[White "Biolek, Richard Jr."]
[Black "Shengelia, David"]
[Result "0-1"]
[ECO "B30"]
[WhiteElo "2447"]
[BlackElo "2532"]
[Annotator "RC"]
[PlyCount "120"]
[EventDate "2018.11.03"]
[EventType "team-tourn"]
[EventCountry "CZE"]
[SourceTitle "playchess.com"]
[Source "ChessBase"]
[SourceQuality "1"]
[WhiteTeam "Ostrava"]
[BlackTeam "Duras"]
[TimeControl "40/5400+30:1800+30"]

1. e4 {[%emt 0:01:02]} c5 {[%emt 0:00:00]} 2. Nf3 {[%emt 0:00:07]} Nc6 {[%emt 0:00:00]} 3. Bb5 {[%emt 0:00:04]} e6 {[%emt 0:00:52]} 4. O-O {[%emt 0:00:35]} Nge7 {[%emt 0:00:13]} 5. d4 {[%emt 0:01:00]} cxd4 {[%emt 0:08:34]} 6. Nxd4 {[%emt 0:00:09]} Nxd4 {[%emt 0:12:53]} 7. Qxd4 {[%emt 0:00:05]} a6 {[%emt 0:05:19]} 8. Be2 {[%emt 0:05:42]} Nc6 {[%emt 0:00:39]} 9. Qe3 {[%emt 0:01:42]} Qc7 {[%emt 0:10:18]} 10. c4 {[%emt 0:02:08]} Bd6 {[%emt 0:13:08]} 11. Kh1 {[%emt 0:00:15]} Ne5 {[%emt 0:06:47]} 12. f4 {[%emt 0:07:23]} Ng6 {[%emt 0:12:37]} 13. Nc3 {[%emt 0:30:04]} b6 {[%emt 0:01:48]} 14. e5 {[%emt 0:02:50]} Bc5 {[%emt 0:00:10]} 15. Qd3 {[%emt 0:00:21]} Bb7 {[%emt 0:01:27]} 16. Bf3 {[%emt 0:00:15]} Bxf3 {[%emt 0:03:02]} 17. Qxf3 {[%emt 0:00:10]} O-O {[%emt 0:00:28]} 18. Ne4 {[%emt 0:01:26]} d6 {[%emt 0:04:49]} 19. exd6 {[%emt 0:09:57]} Bxd6 {[%emt 0:00:11]} 20. Nxd6 {[%emt 0:00:02]} Qxd6 {[%emt 0:00:03]} 21. Be3 {[%emt 0:00:05]} Qb4 {[%emt 0:03:47]} 22. b3 {[%emt 0:00:32]} b5 {[%emt 0:01:47]} 23. Rac1 {[%emt 0:01:55]} Rfd8 {[%emt 0:04:01]} 24. Qb7 {[%emt 0:10:10]} Nh4 {[%emt 0:02:39]} 25. cxb5 {[%emt 0:09:10]} axb5 {[%emt 0:00:29]} 26. Bc5 {[%emt 0:00:16]} Qd2 {[%emt 0:01:01]} 27. Be7 {[%emt 0:03:02]} Rdb8 {[%emt 0:02:51]} 28. Qe4 {[%emt 0:00:44]} Nf5 {[%emt 0:00:08]} 29. Rc2 {[%emt 0:00:06]} Qe3 {[%emt 0:01:17]} 30. Qb4 {[%emt 0:00:49]} Rc8 {[%emt 0:01:56]} 31. Bc5 {[%emt 0:02:41]} Qd3 {[%emt 0:00:03]} 32. Rfc1 {[%emt 0:00:02]} Qd7 {[%emt 0:00:25]} 33. Bg1 {[%emt 0:02:28]} Rxc2 {[%emt 0:00:28]} 34. Rxc2 {[%emt 0:00:02]} h5 {[%emt 0:00:25]} 35. Rd2 {[%emt 0:01:01]} Qc6 {[%emt 0:00:14]} 36. Qc5 {[%emt 0:02:10]} Qe4 {[%emt 0:00:46]} 37. Qxb5 {[%emt 0:02:20]} Qxf4 {[%emt 0:00:16]} 38. Qc6 {[%emt 0:02:36]} Rf8 {[%emt 0:02:02]} 39. Rd3 {[%emt 0:01:01]} h4 {[%emt 0:00:20]} 40. Qc4 {[%emt 0:02:27]} Qe5 {[%emt 0:00:48]} 41. a4 {[%emt 0:07:45]} Ra8 {[%emt 0:10:59]} 42. Rd7 {[%emt 0:11:39]} Qe1 {[%emt 0:05:18]} 43. Qd3 {[%emt 0:00:44]} g6 {[%emt 0:06:08]} 44. Qd1 {[%emt 0:01:40]} Qb4 {[%emt 0:01:27]} 45. Bf2 {[%emt 0:07:43]} Rc8 {[%emt 0:03:31]} 46. Rd8+ {[%emt 0:00:46]} Rxd8 {[%emt 0:00:03]} 47. Qxd8+ {[%emt 0:00:02]} Kg7 {[%emt 0:00:06]} 48. Qd3 {[%emt 0:00:56]} e5 {[%emt 0:01:35]} 49. Kg1 {[%emt 0:01:03]} e4 {[%emt 0:01:43]} 50. Qc4 {[%emt 0:00:03]} Qe7 {[%emt 0:00:24]} 51. Qc3+ {[%emt 0:00:29]} Kh7 {[%emt 0:00:11]} 52. Be3 {[%emt 0:01:03]} Qd7 {[%emt 0:01:31]} 53. Kf2 {[%emt 0:01:43]} h3 {[%emt 0:01:27]} 54. gxh3 {[%emt 0:00:21]} Qd6 {[%emt 0:00:14]} 55. Ke1 {[%emt 0:01:41]} Qxh2 {[%emt 0:00:34]} 56. Qf6 {[%emt 0:00:01]} Qg3+ {[%emt 0:02:52]} 57. Bf2 {[%emt 0:00:38]} Qxb3 {[%emt 0:00:05]} 58. a5 {[%emt 0:01:09]} e3 {[%emt 0:00:47]} 59. Bh4 {[%emt 0:00:02]} Qb4+ {[%emt 0:00:38]} 60. Ke2 {[%emt 0:00:02]} Qc4+ {[%emt 0:00:08]} 0-1

[Event "CZE-tht Extraliga 2018-19"]
[Site "Czech Republic"]
[Date "2018.12.02"]
[Round "4"]
[White "Simek, Petr"]
[Black "Splichal, Petr"]
[Result "1/2-1/2"]
[ECO "E63"]
[WhiteElo "2338"]
[BlackElo "1925"]
[Annotator "NA RC"]
[PlyCount "82"]
[EventDate "2018.11.03"]
[EventType "team-tourn"]
[EventCountry "CZE"]
[SourceTitle "playchess.com"]
[Source "ChessBase"]
[SourceQuality "1"]
[WhiteTeam "Siesta Solution Unichess A"]
[BlackTeam "Siesta Solution Unichess B"]
[TimeControl "40/5400+30:1800+30"]

1. d4 {[%emt 0:00:00]} Nf6 {[%emt 0:00:00]} 2. c4 {[%emt 0:00:00]} g6 {[%emt 0:00:13]} 3. g3 {[%emt 0:00:05]} Bg7 {[%emt 0:00:16]} 4. Bg2 {[%emt 0:00:06]} d6 {[%emt 0:00:26]} 5. Nc3 {[%emt 0:00:32]} O-O {[%emt 0:00:46]} 6. Nf3 {[%emt 0:00:04]} Nc6 {[%emt 0:02:04]} 7. O-O {[%emt 0:00:11]} a6 {[%emt 0:00:36]} 8. Re1 {[%emt 0:01:17]} e5 {[%emt 0:06:41]} 9. d5 {[%emt 0:04:49]} Na5 {[%emt 0:05:41]} 10. Nd2 {[%emt 0:06:33]} b6 {[%emt 0:02:44]} 11. b4 {[%emt 0:08:45]} Nb7 {[%emt 0:00:29]} 12. Nb3 {[%emt 0:00:06]} a5 {[%emt 0:06:58]} 13. a3 {[%emt 0:01:07]} Bd7 {[%emt 0:06:53]} 14. e4 {[%emt 0:02:49]} Qc8 {[%emt 0:05:54]} 15. f3 {[%emt 0:07:22]} Nh5 {[%emt 0:06:10]} 16. Be3 {[%emt 0:01:05]} f5 {[%emt 0:08:10]} 17. Bf2 {[%emt 0:00:42]} Nf6 {[%emt 0:07:49]} 18. c5 {[%emt 0:02:27]} axb4 {[%emt 0:08:32]} 19. axb4 {[%emt 0:00:28]} Rxa1 {[%emt 0:00:07]} 20. Qxa1 {[%emt 0:00:35]} bxc5 {[%emt 0:00:25]} 21. bxc5 {[%emt 0:00:12]} Nxc5 {[%emt 0:01:17]} 22. Nxc5 {[%emt 0:05:14]} dxc5 {[%emt 0:00:18]} 23. Bxc5 {[%emt 0:00:05]} Re8 {[%emt 0:01:30]} 24. Qa7 {[%emt 0:01:25]} Bf8 {[%emt 0:02:47]} 25. Rc1 {[%emt 0:01:45]} Qb8 {[%emt 0:03:11]} 26. Qa3 {[%emt 0:00:16]} Bh6 {[%emt 0:01:58]} 27. Rb1 {[%emt 0:02:04]} Qc8 {[%emt 0:01:31]} 28. Qa7 {[%emt 0:02:18]} fxe4 {[%emt 0:03:31]} 29. fxe4 {[%emt 0:00:35]} c6 {[%emt 0:05:30]} 30. d6 {[%emt 0:01:48]} Qa8 {[%emt 0:02:15]} 31. Rb7 {[%emt 0:04:58]} Qxa7 {[%emt 0:00:36]} 32. Rxa7 {[%emt 0:00:37]} Rb8 {[%emt 0:01:50]} 33. h3 {[%emt 0:03:20]} Rb3 {[%emt 0:02:27]} 34. Ne2 {[%emt 0:04:33]} Rb5 {[%emt 0:01:21]} 35. Bf2 {[%emt 0:00:25]} Rb1+ {[%emt 0:00:25]} 36. Kh2 {[%emt 0:00:07]} Rb2 {[%emt 0:00:35]} 37. Bf3 {[%emt 0:00:17]} Kf8 {[%emt 0:04:02]} 38. Kg2 {[%emt 0:01:50]} Ke8 {[%emt 0:00:27]} 39. Ra5 {[%emt 0:00:42]} Rb5 {[%emt 0:01:05]} 40. Ra7 {[%emt 0:12:47]} Rb2 {[%emt 0:00:34]} 41. Ra5 {[%emt 0:40:15]} Rb5 {[%emt 0:31:01]} 1/2-1/2